lending/lending_fUSD_20251022
["ID","MTS","AMOUNT","RATE_DAILY","PERIOD"]
[392104938,1761161496664,-583.51,0.00044999,120]
[392104939,1761161496673,-583.51,0.00044999,120]
[392104940,1761161496683,-583.51,0.00044999,120]
[392104941,1761161496692,-583.51,0.00044999,120]
[392104942,1761161496701,-583.51,0.00044999,120]
[392104943,1761161496711,-583.51,0.00044999,120]
[392104944,1761161496720,-583.74450996,0.00044999,120]
[392104945,1761161496730,-500.0,0.00044999,120]
[392104946,1761161496739,-500.0,0.00044999,120]
[392104947,1761161496749,-500.0,0.00044999,120]
[392104948,1761161496759,-541.01212827,0.00044999,120]
[392104949,1761161496768,-768.13,0.00044999,120]
[392104950,1761161496778,-768.13,0.00044999,120]
[392104951,1761161496787,-768.13,0.00044999,120]
[392104952,1761161496796,-768.13,0.00044999,120]
[392104953,1761161496805,-768.13,0.00044999,120]
[392104954,1761161496814,-768.13,0.00044999,120]
[392104955,1761161496823,-768.34856258,0.00044999,120]
[392104956,1761161496832,-801.13,0.00044999,120]
[392104957,1761161496842,-801.13,0.00044999,120]
[392104958,1761161496851,-801.13,0.00044999,120]
[392104959,1761161496863,-801.13,0.00044999,120]
[392104960,1761161496872,-801.13,0.00044999,120]
[392104961,1761161496882,-500.0,0.00044999,120]
[392104962,1761161496892,-801.13,0.00044999,120]
[392104963,1761161496901,-500.0,0.00044999,120]
[392104964,1761161496911,-801.26734473,0.00044999,120]
[392104965,1761161496921,-359.03586126,0.00044999,120]
[392104966,1761161496930,-1029.39,0.00044999,120]
[392104967,1761161496939,-1029.39,0.00044999,120]
[392104968,1761161496949,-1029.39,0.00044999,120]
[392104969,1761161496958,-1029.39,0.00044999,120]
[392104970,1761161496967,-1029.39,0.00044999,120]
[392104971,1761161496976,-1029.39,0.00044999,120]
[392104972,1761161496985,-1029.44972912,0.00044999,120]
[392104973,1761161496995,-799.25,0.00044999,120]
[392104974,1761161497005,-799.25,0.00044999,120]
[392104975,1761161497015,-799.25,0.00044999,120]
[392104976,1761161497024,-799.25,0.00044999,120]
[392104977,1761161497033,-799.25,0.00044999,120]
[392104978,1761161497042,-799.25,0.00044999,120]
[392104979,1761161497052,-799.30786145,0.00044999,120]
[392104980,1761161497062,-613.54,0.00044999,120]
[392104981,1761161497071,-613.54,0.00044999,120]
[392104982,1761161497081,-613.54,0.00044999,120]
[392104983,1761161497091,-613.54,0.00044999,120]
[392104984,1761161497100,-613.54,0.00044999,120]
[392104985,1761161497110,-613.54,0.00044999,120]
[392104986,1761161497119,-613.61086819,0.00044999,120]
[392104987,1761161497128,-875.35,0.00044999,120]
[392104988,1761161497137,-875.35,0.00044999,120]
[392104989,1761161497147,-875.35,0.00044999,120]
[392104990,1761161497156,-820090.42578634,0.00045,120]
[392104991,1761161497166,-1000000.0,0.00045,120]
[392104992,1761161497175,-4487.73,0.00045,14]
[392104993,1761161497185,-163000.0,0.00045,120]
[392104994,1761161497194,-1000000.0,0.00045,120]
[392104995,1761161497203,-263.03,0.00045,30]
[392104996,1761161497213,-1000000.0,0.00045,120]
[392104997,1761161497222,-78840.73464687,0.00045,120]
[392104998,1761161497679,-151.0,0.00043835,120]
[392104999,1761161497689,-188.878195,0.00043835,30]
[392105000,1761161497698,-151.0,0.000439,120]
[392105001,1761161497707,-188.878195,0.000439,30]
[392105002,1761161497716,-188.878195,0.00043977,30]
[392105003,1761161497725,-151.0,0.00043977,120]
[392105004,1761161497735,-188.878195,0.00043977,30]
[392105005,1761161497745,-151.0,0.00043997,120]
[392105006,1761161497754,-188.878195,0.00043997,30]
[392105007,1761161497763,-146.74219692,0.00043997,120]
[392105008,1761161497775,-4.25780308,0.00043997,120]
[392105009,1761161497784,-188.878195,0.00043997,30]
[392105010,1761161497794,-151.0,0.00043999,120]
[392105011,1761161497803,-188.878195,0.00043999,30]
[392105012,1761161497813,-151.0,0.00043999,120]
[392105013,1761161497822,-153.0,0.0004424,120]
[392105014,1761161497831,-153.0,0.0004424,120]
[392105015,1761161497841,-153.0,0.0004424,120]
[392105016,1761161497850,-153.0,0.0004424,120]
[392105017,1761161497859,-153.0,0.0004424,120]
[392105018,1761161497868,-153.0,0.0004424,120]
[392105019,1761161497878,-692.44,0.00044498,120]
[392105020,1761161497887,-692.44,0.00044697,120]
[392105021,1761161497897,-692.44,0.00044898,120]
[392105022,1761161497907,-692.44,0.00044991,120]
[392105023,1761161497916,-692.44,0.00044997,120]
[392105024,1761161497926,-386.05379243,0.00044997,120]
[392105025,1761161497957,-196.458293,0.00043835,120]
[392105026,1761161497967,-188.878193,0.00043999,30]
[392105027,1761161497976,-306.38620757,0.00044997,120]
[392105028,1761161497985,-692.44,0.00044998,120]
[392105029,1761161497996,-692.44,0.00044998,120]
[392105030,1761161498005,-692.44,0.00044998,120]
[392105031,1761161498015,-692.44,0.00044998,120]
[392105032,1761161498025,-692.51592792,0.00044998,120]
[392105033,1761161498035,-875.35,0.00044999,120]
[392105034,1761161498045,-875.35,0.00044999,120]
[392105035,1761161498054,-875.35,0.00044999,120]
[392105036,1761161498065,-875.4127583,0.00044999,120]
[392105037,1761161498076,-17262.28477391,0.00045,120]
[392105054,1761161953353,234.16,0.00013699,2]
[392105059,1761162079714,-234.16,0.00020187,2]
[392105060,1761162079738,-250.0,0.00022206,2]
[392105061,1761162079760,-25.13999984,0.00026078,2]
[392105062,1761162081228,-239.65461,0.00026078,2]
[392105074,1761162306884,741.18629719,0.00026203,120]
[392105075,1761162318954,-210.69059488,0.00026078,2]
[392105076,1761162318977,-76.83238996,0.00026327,2]
[392105077,1761162356085,-173.16761004,0.00026327,2]
[392105078,1761162356106,-3501.43386117,0.00026576,2]
[392105079,1761162356126,-263.27527561,0.00026576,2]
[392105080,1761162356145,-234.16,0.00026676,2]
[392105081,1761162356164,-239.65461,0.00028686,2]
[392105082,1761162356185,-264.66691542,0.00028686,120]
[392105083,1761162356206,-250.0,0.00028686,2]
[392105084,1761162356230,-300.0,0.00028686,120]
[392105085,1761162356250,-300.0,0.00028686,120]
[392105086,1761162356270,-2500.0,0.00028686,120]
[392105087,1761162356290,-1000.0,0.0002991,7]
[392105088,1761162356310,-287.489145,0.00031804,2]
[392105089,1761162356329,-500.0,0.00031964,7]
[392105090,1761162356347,-300.0,0.00032769,3]
[392105091,1761162356367,-1600.0,0.0003277,3]
[392105092,1761162356386,-251.0,0.0003277,3]
[392105093,1761162356405,-1600.0,0.0003277,3]
[392105094,1761162356425,-400.0,0.0003277,2]
[392105095,1761162356445,-400.0,0.0003277,3]
[392105096,1761162356464,-500.0,0.000328,5]
[392105097,1761162356484,-500.0,0.000328,5]
[392105098,1761162356503,-500.0,0.000328,5]
[392105099,1761162356524,-352.58260365,0.000328,5]
[392105102,1761162434092,-147.41739635,0.000328,5]
[392105103,1761162434112,-1149.58714148,0.00033132,2]
[392105104,1761162444079,-815.29663724,0.00033132,2]
[392105107,1761162548100,-2941.69141743,0.00033132,2]
[392105108,1761162548121,-476.13251256,0.00033132,2]
[392105109,1761162548143,-234.16,0.00033165,2]
[392105110,1761162548167,-500.0,0.00033348,5]
[392105111,1761162548188,-263.27527559,0.00033446,2]
[392105112,1761162548210,-400.0,0.00034099,2]
[392105113,1761162548229,-3256.1906771,0.000341,30]
[392105114,1761162548253,-178.81,0.0003441,2]
[392105115,1761162548275,-812.17035112,0.00035175,2]
[392105116,1761162548296,-560.0,0.00035218,3]
[392105117,1761162548316,-200.0,0.00035361,3]
[392105118,1761162548338,-1780.0,0.00035362,3]
[392105119,1761162548358,-559.39,0.00035362,2]
[392105120,1761162548378,-727.84,0.00035362,2]
[392105121,1761162548403,-7705.58,0.00035362,2]
[392105122,1761162548422,-3130.55,0.00035362,2]
[392105123,1761162548442,-2349.05,0.00035673,2]
[392105124,1761162548462,-998.08,0.00035673,2]
[392105125,1761162548483,-287.88419662,0.00036474,2]
[392105126,1761162548503,-413.0,0.00036596,2]
[392105127,1761162548528,-270.654,0.00036786,46]
[392105128,1761162548551,-410.11137599,0.00036964,2]
[392105131,1761162562086,-253.17310256,0.00037432,2]
[392105132,1761162562107,-651.0,0.00037849,3]
[392105133,1761162562130,-4637.62,0.00038037,2]
[392105134,1761162562151,-1953.0759898,0.00039244,2]
[392105135,1761162562172,-3955.7864103,0.00039244,2]
[392105136,1761162562192,-234.16,0.00039654,2]
[392105137,1761162562213,-1754.0,0.000397,2]
[392105138,1761162562238,-151.0,0.00039905,2]
[392105139,1761162562264,-183.28498649,0.00039905,2]
[392105140,1761162562292,-151.0,0.00039905,2]
[392105141,1761162562315,-151.0,0.00039905,2]
[392105142,1761162562336,-151.0,0.00039905,2]
[392105143,1761162562357,-151.0,0.00039905,2]
[392105144,1761162562380,-151.0,0.00039905,2]
[392105145,1761162562402,-151.0,0.00039905,2]
[392105146,1761162562423,-151.0,0.00039905,2]
[392105147,1761162562443,-151.0,0.00039905,2]
[392105148,1761162562464,-151.0,0.00039905,2]
[392105149,1761162562485,-151.0,0.00039905,2]
[392105150,1761162562507,-151.0,0.00039905,2]
[392105151,1761162562528,-151.0,0.00039905,2]
[392105152,1761162562549,-151.0,0.00039905,2]
[392105153,1761162562570,-151.0,0.00039905,2]
[392105154,1761162562592,-151.0,0.00039905,2]
[392105155,1761162562613,-151.0,0.00039905,2]
[392105156,1761162562637,-151.0,0.00039905,2]
[392105157,1761162562660,-151.0,0.00039905,2]
[392105158,1761162562883,-151.0,0.00039905,2]
[392105159,1761162562906,-151.0,0.00039905,2]
[392105160,1761162562926,-16332.67,0.00039929,2]
[392105163,1761162631852,-2920.00004,0.00035672,30]
[392105166,1761162631970,-818.42889,0.00035672,30]
[392105167,1761162631982,-2750.0,0.00035672,30]
[392105168,1761162632029,-3511.57107,0.00035672,30]
[392105169,1761162632042,-560.36,0.00040702,2]
[392105170,1761162632052,-1164.83576748,0.00040942,120]
[392105171,1761162632062,-450.0,0.00041,30]
[392105172,1761162632072,-168.0,0.00041169,2]
[392105173,1761162632082,-536.84,0.00041206,7]
[392105174,1761162632092,-168.0,0.00041646,2]
[392105175,1761162632101,-506.4,0.00041711,2]
[392105176,1761162632111,-788.55,0.00041791,2]
[392105177,1761162632120,-1702.5,0.00041792,2]
[392105178,1761162632130,-150.0,0.00041907,2]
[392105179,1761162632139,-153.0,0.0004209,90]
[392105180,1761162632149,-168.0,0.00042345,2]
[392105181,1761162632158,-238.29896223,0.00042434,30]
[392105182,1761162632167,-168.0,0.00042448,2]
[392105183,1761162632177,-666.0,0.00042611,20]
[392105184,1761162632187,-868.4,0.00042935,2]
[392105185,1761162632197,-153.0,0.00043,90]
[392105187,1761162632208,-178.81,0.00043012,2]
[392105189,1761162632217,-168.0,0.00043035,2]
[392105190,1761162632227,-168.0,0.00043185,2]
[392105191,1761162632237,-168.0,0.00043296,2]
[392105192,1761162632246,-1164.83576748,0.00043399,120]
[392105193,1761162632256,-912.65,0.00043478,120]
[392105194,1761162632266,-50000.0,0.000435,120]
[392105195,1761162632276,-153.0,0.00043501,90]
[392105196,1761162632285,-153.0,0.00043501,90]
[392105197,1761162632295,-153.0,0.00043501,90]
[392105198,1761162632304,-153.0,0.00043501,90]
[392105199,1761162632314,-153.0,0.00043501,90]
[392105200,1761162632323,-153.0,0.00043501,90]
[392105201,1761162632333,-153.0,0.00043501,90]
[392105202,1761162632342,-153.0,0.00043501,90]
[392105203,1761162632352,-153.0,0.00043501,90]
[392105204,1761162632361,-153.0,0.00043501,90]
[392105205,1761162632371,-153.0,0.00043501,90]
[392105206,1761162632381,-153.0,0.00043501,90]
[392105207,1761162632390,-153.0,0.00043517,90]
[392105208,1761162632401,-153.0,0.00043517,90]
[392105209,1761162632411,-1759.7463,0.00043635,2]
[392105210,1761162632420,-257.46896251,0.00043635,30]
[392105211,1761162632433,-950.68,0.00043699,30]
[392105212,1761162632443,-525.56104424,0.00043734,120]
[392105213,1761162632454,-500.0,0.00043734,120]
[392105214,1761162632463,-509.31660826,0.00043734,120]
[392105215,1761162632474,-500.0,0.00043734,2]
[392105216,1761162632483,-480.68803472,0.00043826,30]
[392105217,1761162632496,-818.31196528,0.00043826,30]
[392105218,1761162632505,-10.33203472,0.00043835,12]
[392105219,1761162632517,-489.66796528,0.00043835,12]
[392105220,1761162632527,-500.0,0.00043835,12]
[392105221,1761162632537,-500.0,0.00043835,12]
[392105222,1761162632546,-500.0,0.00043835,12]
[392105223,1761162632556,-500.0,0.00043835,120]
[392105224,1761162632565,-500.0,0.00043835,120]
[392105225,1761162632575,-500.0,0.00043835,120]
[392105226,1761162632584,-500.0,0.00043835,120]
[392105227,1761162632594,-509.6423515,0.00043835,120]
[392105228,1761162632604,-593.19335051,0.00043835,120]
[392105229,1761162632616,-25.61584461,0.00043835,120]
[392105230,1761162632625,-500.0,0.00043835,120]
[392105231,1761162632634,-70.98880332,0.00043835,120]
[392105291,1761162638554,-429.01119668,0.00043835,120]
[392105293,1761162638563,-259.58851663,0.00043835,120]
[392105295,1761162638573,-500.0,0.00043835,120]
[392105297,1761162638583,-500.0,0.00043835,120]
[392105299,1761162638593,-500.0,0.00043835,120]
[392105301,1761162638602,-500.0,0.00043835,120]
[392105303,1761162638611,-167.783265,0.00043835,120]
[392105305,1761162638620,-500.0,0.00043835,120]
[392105307,1761162638630,-500.0,0.00043835,120]
[392105309,1761162638639,-500.0,0.00043835,120]
[392105311,1761162638649,-500.0,0.00043835,120]
[392105313,1761162638662,-526.18,0.00043835,120]
[392105315,1761162638674,-500.0,0.00043835,120]
[392105317,1761162638683,-528.24975002,0.00043835,120]
[392105319,1761162638692,-521.58955088,0.00043835,120]
[392105321,1761162638703,-500.0,0.00043835,120]
[392105323,1761162638713,-500.0,0.00043835,120]
[392105325,1761162638722,-500.0,0.00043835,120]
[392105327,1761162638732,-500.0,0.00043835,120]
[392105329,1761162638742,-500.0,0.00043835,120]
[392105331,1761162638752,-160.46374349,0.00043836,2]
[392105334,1761162638771,-500.0,0.00043877,12]
[392105336,1761162638781,-500.0,0.00043877,120]
[392105345,1761162638982,-500.0,0.00043877,120]
[392105347,1761162638992,-500.0,0.00043877,120]
[392105349,1761162639002,-500.0,0.00043889,12]
[392105351,1761162639012,-500.0,0.00043889,120]
[392105353,1761162639022,-500.0,0.00043889,120]
[392105355,1761162639032,-500.0,0.00043889,120]
[392105357,1761162639042,-168.0,0.00043912,2]
[392105359,1761162639052,-500.0,0.00043913,10]
[392105361,1761162639063,-500.0,0.00043931,12]
[392105363,1761162639072,-500.0,0.00043931,120]
[392105365,1761162639082,-500.0,0.00043931,120]
[392105367,1761162639091,-500.0,0.00043931,120]
[392105369,1761162639100,-500.0,0.00043972,12]
[392105371,1761162639110,-500.0,0.00043972,12]
[392105373,1761162639120,-500.0,0.00043972,120]
[392105375,1761162639129,-500.0,0.00043972,120]
[392105377,1761162639139,-171.70409336,0.00043972,120]
[392105379,1761162639149,-500.0,0.00043972,120]
[392105381,1761162639160,-500.0,0.00043972,120]
[392105383,1761162639170,-500.0,0.00043976,12]
[392105385,1761162639180,-500.0,0.00043976,120]
[392105387,1761162639190,-587.70688208,0.00043976,120]
[392105389,1761162639200,-494.62314388,0.00043988,12]
[392105391,1761162639211,-500.0,0.00043988,120]
[392105393,1761162639222,-500.0,0.00043997,120]
[392105395,1761162639232,-418.125491,0.00043998,120]
[392105397,1761162639243,-184.80906232,0.00044,120]
[392105399,1761162639252,-168.0,0.00044075,2]
[392105401,1761162639264,-1102.30793606,0.0004409,50]
[392105403,1761162639274,-1075.43601224,0.0004409,50]
[392105405,1761162639283,-1036.72566657,0.0004409,50]
[392105407,1761162639293,-1032.81665555,0.0004409,50]
[392105409,1761162639303,-1022.05851475,0.0004409,50]
[392105411,1761162639313,-695.05,0.00044164,30]
[392105413,1761162639323,-882.6552552,0.00044255,2]
[392105415,1761162639333,-168.0,0.00044272,2]
[392105417,1761162639344,-1299.0,0.00044278,30]
[392105419,1761162639354,-1900.0,0.000443,16]
[392105421,1761162639363,-5703.76966322,0.00044383,14]
[392105424,1761162639373,-3800.0,0.000444,16]
[392105425,1761162639384,-284.93751373,0.00044461,10]
[392105428,1761162639393,-5800.0,0.000445,16]
[392105430,1761162639403,-206.0,0.00044507,120]
[392105432,1761162639412,-868.4,0.00044546,2]
[392105434,1761162639423,-7700.0,0.000446,16]
[392105436,1761162639435,-1000.0,0.000446,7]
[392105438,1761162639445,-150.0,0.00044603,60]
[392105440,1761162639456,-150.0,0.00044603,60]
[392105442,1761162639466,-9700.0,0.000447,16]
[392105444,1761162639475,-1299.0,0.0004473,30]
[392105446,1761162639484,-536.84,0.00044782,7]
[392105448,1761162639494,-548.0,0.000448,7]
[392105450,1761162639503,-791.5546312,0.000448,15]
[392105452,1761162639512,-1900.0,0.000448,16]
[392105454,1761162639521,-155.33105114,0.000448,28]
[392105456,1761162639530,-791.55463111,0.00044811,15]
[392105458,1761162639539,-155.3310511,0.00044819,28]
[392105460,1761162639550,-428.13797,0.0004482,25]
[392105462,1761162639560,-791.55463111,0.00044822,15]
[392105464,1761162639569,-791.55463111,0.00044833,15]
[392105466,1761162639579,-818.0,0.00044833,2]
[392105468,1761162639588,-3411.0,0.00044833,2]
[392105470,1761162639597,-572.0,0.00044833,2]
[392105472,1761162639606,-2052.0,0.00044833,2]
[392105474,1761162639616,-1311.0,0.00044833,2]
[392105476,1761162639625,-605.0,0.00044833,2]
[392105478,1761162639634,-1591.0,0.00044833,2]
[392105480,1761162639644,-2548.0,0.00044833,2]
[392105481,1761162639655,-903.0,0.00044833,2]
[392105483,1761162639664,-817.0,0.00044833,2]
[392105485,1761162639673,-1269.0,0.00044833,2]
[392105487,1761162639683,-2592.0,0.00044833,2]
[392105489,1761162639692,-557.0,0.00044833,2]
[392105491,1761162639702,-6536.0,0.00044833,2]
[392105493,1761162639711,-6453.0,0.00044833,2]
[392105495,1761162639721,-168.0,0.00044835,2]
[392105497,1761162639731,-155.3310511,0.00044839,28]
[392105499,1761162639740,-791.55463111,0.00044844,15]
[392105501,1761162639750,-791.55463111,0.00044856,15]
[392105503,1761162639759,-791.55463111,0.00044867,15]
[392105505,1761162639768,-153.0,0.00044877,90]
[392105507,1761162639777,-791.55463111,0.00044878,15]
[392105509,1761162639787,-5000.0,0.0004488,120]
[392105511,1761162639796,-791.55463111,0.00044889,15]
[392105513,1761162639805,-391.52899082,0.00044889,120]
[392105515,1761162639815,-160.22967406,0.00044889,120]
[392105517,1761162639823,-63040.8890094,0.0004489,3]
[392105519,1761162639833,-6489.7177,0.000449,2]
[392105521,1761162639842,-175.47982306,0.000449,17]
[392105523,1761162639851,-66603.22430534,0.000449,60]
[392105525,1761162639863,-3543.8996,0.000449,60]
[392105527,1761162639874,-3579.14478074,0.000449,60]
[392105529,1761162639885,-5399.74822014,0.000449,60]
[392105531,1761162639896,-532.70323927,0.000449,60]
[392105534,1761162639908,-498.35281191,0.000449,60]
[392105536,1761162639919,-2168.36475445,0.000449,60]
[392105542,1761162639966,-53643.20188815,0.000449,60]
[392105544,1761162639975,-1900.0,0.000449,16]
[392105546,1761162639984,-791.55463111,0.000449,15]
[392105548,1761162639994,-161.80636963,0.000449,20]
[392105550,1761162640003,-221.96850269,0.000449,2]
[392105552,1761162640012,-202.92757202,0.000449,2]
[392105554,1761162640022,-7004.54322327,0.0004496,3]
[392105556,1761162640031,-7004.54322327,0.00044969,3]
[392105558,1761162640041,-800.0,0.0004497,3]
[392105560,1761162640050,-7004.54322327,0.0004497,3]
[392105561,1761162640059,-49031.8025629,0.0004497,3]
[392105564,1761162640069,-500.0,0.00044973,10]
[392105566,1761162640078,-7004.54322327,0.00044978,3]
[392105568,1761162640088,-6686.45111355,0.00044978,3]
[392105570,1761162640097,-28018.1728931,0.00044979,3]
[392105572,1761162640107,-20059.3533406,0.00044979,3]
[392105574,1761162640117,-526.18,0.0004498,120]
[392105576,1761162640126,-500.0,0.0004498,120]
[392105578,1761162640136,-500.0,0.0004498,120]
[392105580,1761162640145,-500.0,0.0004498,120]
[392105581,1761162640154,-14009.0864465,0.0004498,3]
[392105583,1761162640164,-13372.9022271,0.0004498,3]
[392105585,1761162640174,-19481.3131246,0.00044988,2]
[392105587,1761162640183,-42027.2593396,0.00044989,3]
[392105590,1761162640194,-46805.1577948,0.00044989,3]
[392105592,1761162640204,-500.0,0.00044989,120]
[392105594,1761162640214,-374.6223791,0.00044989,120]
[392105596,1761162640223,-7004.54322327,0.0004499,3]
[392105598,1761162640232,-30003.52369878,0.0004499,3]
[392105600,1761162640244,-894.70590025,0.0004499,3]
[392105603,1761162640262,-1090.39832314,0.00043915,50]
[392105605,1761162640273,-248.91994285,0.0004499,3]
[392105607,1761162640284,-12580.546228,0.0004499,3]
[392105609,1761162640295,-416.91910228,0.0004499,3]
[392105611,1761162640307,-563.00243868,0.0004499,3]
[392105613,1761162640319,-544.90783643,0.0004499,3]
[392105616,1761162640330,-1919.567265,0.0004499,3]
[392105821,1761162643134,-270.76163892,0.000411,2]
[392105826,1761162643203,-27.33576729,0.000411,2]
[392105828,1761162643215,-377.90259379,0.000411,2]
[392105830,1761162643225,-1090.49570085,0.00043915,50]
[392105833,1761162643235,-1050.8941467,0.00043915,50]
[392105835,1761162643245,-150.0,0.00044833,2]
[392105837,1761162643254,-1689.00198656,0.000449,2]
[392105839,1761162643263,-35341.7055721,0.0004499,3]
[392105843,1761162643303,-422.35189503,0.0004499,3]
[392105846,1761162643323,-316.47033406,0.0004499,3]
[392105878,1761162643618,-1801.93666911,0.0004499,3]
[392105880,1761162643629,-565.35533418,0.0004499,3]
[392105917,1761162645945,-153.0,0.00043501,90]
[392105918,1761162645955,-147.0,0.00043915,50]
[392105919,1761162646014,-522.52533801,0.00043915,50]
[392105920,1761162646245,-464.04317032,0.00043915,50]
[392105921,1761162646255,-173.15829269,0.00043915,50]
[392105923,1761162692457,709.97,0.00037808,60]
[392105924,1761162692745,709.97,0.00037839,80]
[392105925,1761162693040,709.97,0.00037869,100]
[392105926,1761162693342,709.97,0.000379,120]
[392105928,1761162728768,500.0,0.00033032,2]
[392105929,1761162998817,227.86790052,0.00021894,2]
[392105930,1761163008991,-16.95209948,0.00021894,2]
[392105931,1761163009015,-217.07045,0.00023046,2]
[392105932,1761163143922,-27.74955,0.00023046,2]
[392105933,1761163143948,-244.82,0.00024198,2]
[392105934,1761163143971,-27.43045,0.0002535,2]
[392105936,1761163328716,9602.6476319,0.00018001,2]
[392105938,1761163628476,-351.66892671,0.0002525,2]
[392105939,1761163628496,-205.48798768,0.0002525,2]
[392105940,1761163628516,-150.0,0.0002535,2]
[392105941,1761163628706,-244.82,0.0002535,2]
[392105942,1761163628728,-244.82,0.00026503,2]
[392105943,1761163628749,-244.82,0.00027655,2]
[392105944,1761163628769,-263.27527559,0.00027675,2]
[392105945,1761163628790,-207.42187142,0.00027775,2]
[392105946,1761163628809,-250.0,0.00027775,2]
[392105947,1761163628830,-1338.93270527,0.00027775,120]
[392105948,1761163628851,-244.82,0.00028807,2]
[392105949,1761163628872,-244.82,0.0002996,2]
[392105950,1761163628894,-234.4802132,0.00030513,7]
[392105951,1761163644123,-166.66096256,0.00030476,7]
[392105952,1761163644145,-178.0,0.00031,120]
[392105953,1761163644166,-300.0,0.00031092,3]
[392105954,1761163644187,-699.06347961,0.00031092,3]
[392105957,1761163748115,-500.93652039,0.00031092,3]
[392105958,1761163748137,-251.0,0.00031092,3]
[392105959,1761163748160,-151.0,0.00031093,2]
[392105960,1761163748194,-151.0,0.00031093,2]
[392105961,1761163748224,-151.0,0.00031093,2]
[392105962,1761163748247,-151.0,0.00031093,2]
[392105963,1761163748268,-151.0,0.00031093,2]
[392105964,1761163748293,-151.0,0.00031093,2]
[392105965,1761163748318,-151.0,0.00031093,2]
[392105966,1761163748343,-151.0,0.00031093,2]
[392105967,1761163748370,-151.0,0.00031093,2]
[392105968,1761163748392,-151.0,0.00031093,2]
[392105969,1761163748413,-151.0,0.00031093,2]
[392105970,1761163748433,-151.0,0.00031093,2]
[392105971,1761163748454,-151.0,0.00031093,2]
[392105972,1761163748474,-270.85225305,0.00031093,2]
[392105973,1761163748496,-244.82,0.00031112,2]
[392105974,1761163748517,-500.0,0.000317,5]
[392105975,1761163748537,-450.0,0.0003223,2]
[392105976,1761163748557,-1000.0,0.00032231,2]
[392105977,1761163748578,-250.197,0.00032231,31]
[392105978,1761163748605,-500.0,0.00032231,2]
[392105979,1761163748630,-500.0,0.00032231,2]
[392105980,1761163748654,-500.0,0.00032231,2]
[392105981,1761163748677,-500.0,0.00032231,2]
[392105982,1761163748700,-500.0,0.00032231,2]
[392105983,1761163748722,-500.0,0.00032231,2]
[392105984,1761163748743,-119.76517856,0.00032231,2]
[392105985,1761163750082,-431.86907613,0.00032231,2]
[392105986,1761163750104,-500.0,0.00032231,2]
[392105987,1761163750133,-115.41941497,0.00032231,2]
[392105988,1761163753142,-384.58058503,0.00032231,2]
[392105989,1761163753163,-10520.97,0.00032231,2]
[392105990,1761163753183,-315.36,0.00032232,2]
[392105991,1761163753204,-29765.64,0.00032232,10]
[392105992,1761163753223,-9999.99,0.00032232,2]
[392105993,1761163753242,-7337.48,0.00032232,2]
[392105994,1761163753264,-244.82,0.00032264,2]
[392105995,1761163753285,-244.82,0.00033417,2]
[392105996,1761163753305,-783.18398626,0.00033792,7]
[392105997,1761163753593,150.0,0.00033917,3]
[392105998,1761163763107,-244.82,0.00034569,2]
[392105999,1761163763135,-187.67040641,0.000348,120]
[392106000,1761163763157,-244.82,0.00035721,2]
[392106001,1761163763176,-2300.0,0.00036,90]
[392106002,1761163763198,-186.65,0.00036071,2]
[392106003,1761163763219,-244.82,0.00036873,2]